Cogmind - Beta 13 @@@ ROGUE MODE // 2024.06.16 @ 00:01:24 Player: dp-fld Result: Destroyed by G-47 Trooper with Particle Gun Performance ------------- Evolutions (3) 1500 Regions Visited (9) 1800 Robots Destroyed (211) 1055 Value Destroyed (6483) 6483 Prototype IDs (27) 540 Alien Tech Used (0) 0 Bonus (752) 752 TOTAL SCORE: 12130 Bonus ------- High Alert Combat Kills 614 Follower Combat Kills 212 Friendly Fire -74 Cogmind --------- Core Integrity 0/700 Matter 48/300 Energy 100/100 System Corruption 8% Temperature Cool (46) Movement Core (50) Location -7/Storage Parts ------- > --- POWER (1) -------- (None) > --- PROPULSION (4) --- (None) > --- UTILITY (6) ------ (None) > --- WEAPON (2) ------- (None) > --- INVENTORY (5) ---- Improved Flight Unit Improved Flight Unit Xenon Bombardment Thruster Cooled VTOL Module Datajack Peak State ------------ > --- POWER ------------ Cooled Deuterium Engine > --- PROPULSION ------- Armored Huge Wheel Armored Huge Wheel > --- UTILITY ---------- Improved Cooling System High-capacity Storage Unit Improved Sensor Array Improved Signal Interpreter Advanced Targeting Computer Hardened Medium Armor Plating > --- WEAPON ----------- High-powered Field Laser Advanced Assault Cannon > --- INVENTORY -------- Micro Nuclear Core Improved Treads Improved Flight Unit Improved Flight Unit Xenon Bombardment Thruster Improved Cesium-ion Thruster Medium Storage Unit Salvage Targeting Computer Improved Utility Shielding Hardened Medium Armor Plating Improved Light Armor Plating Authchip [Armor] Improved Trap Extractor Decoy Drone Bay Enhanced Autogun Improved Grenade Launcher Heavy Missile Launcher Datajack Katana [Rating: 54] Favorites ----------- Power Ion Engine Engine Ion Engine Power Core Enhanced Nuclear Core Propulsion Light Treads Treads Light Treads Leg Aluminum Leg Wheel Armored Huge Wheel Flight Unit Cooled VTOL Module Utility High-capacity Storage Unit Device Improved Cooling System Storage High-capacity Storage Unit Processor Advanced Targeting Computer Hackware System Shield Protection Hardened Light Armor Plating Weapon Improved Light Cannon Energy Gun High-powered Field Laser Energy Cannon Advanced Beam Cannon Ballistic Gun Gauss Rifle Ballistic Cannon Improved Light Cannon Launcher EMP Blaster Impact Weapon Powered Hammer Slashing Weapon Katana Build | -11 -10 -10 -9 -9 -9 -8 -8 -7 -7 ------- Run | Yrd Mat Min Mat Min Exi Min Mat Fac Sto Slots Evolved 6 | . . . 2 . . . 2 2 . Power . | . . . . . . . . . . Propulsion 2 | . . . 1 . . . . 1 . Utility 4 | . . . 1 . . . 2 1 . Weapon . | . . . . . . . . . . Parts Attached 217 | 7 24 7 22 8 . 4 52 74 19 Power 13 | 1 2 . 2 . . . 3 4 1 Engine 10 | 1 2 . 2 . . . 2 3 . Core 3 | . . . . . . . 1 1 1 Reactor . | . . . . . . . . . . Propulsion 57 | 2 4 3 9 . . . 13 24 2 Treads 37 | . . 3 9 . . . 12 12 1 Leg 7 | 2 4 . . . . . . . 1 Wheel 10 | . . . . . . . 1 9 . Hover . | . . . . . . . . . . Flight 3 | . . . . . . . . 3 . Utility 59 | 2 6 . 5 7 . . 10 27 2 Device 19 | 1 1 . . 2 . . 3 12 . Storage 6 | 1 3 . 1 1 . . . . . Processor 4 | . . . 1 . . . 2 1 . Hackware 2 | . . . . . . . 2 . . Protection 28 | . 2 . 3 4 . . 3 14 2 Artifact . | . . . . . . . . . . Weapon 88 | 2 12 4 6 1 . 4 26 19 14 Energy Gun 15 | 2 1 . . . . . 6 5 1 Energy Cannon 1 | . . . . . . . 1 . . Ballistic Gun 9 | . 2 . . 1 . . 3 1 2 Ballistic Cannon 33 | . 4 2 4 . . 2 8 9 4 Launcher 16 | . 1 1 . . . 2 5 1 6 Special Weapon . | . . . . . . . . . . Impact Weapon 9 | . 4 1 2 . . . 1 1 . Slashing Weapon 5 | . . . . . . . 2 2 1 Piercing Weapon . | . . . . . . . . . . Special Melee Weapon . | . . . . . . . . . . Unidentified Prototypes 14 | . . . 1 1 . . 4 5 3 Corrupted Parts 1 | . . 1 . . . . . . . System Corruption 3 | . . 3 . . . . . . . Parts Lost 33 | . 2 . . . . . 15 5 11 Power 4 | . . . . . . . 1 2 1 Propulsion 11 | . 1 . . . . . 6 2 2 Utility 11 | . 1 . . . . . 3 . 7 Weapon 7 | . . . . . . . 5 1 1 Highest Loss Streak 6 | . 1 . . . . . 6 1 4 To Critical Strikes . | . . . . . . . . . . Average Slot Usage (%) 95 | . 99 100 99 99 100 100 94 90 77 Engine 9 | . 14 14 11 11 11 11 6 6 3 Treads 19 | . . 26 33 33 33 33 24 13 1 Leg 3 | . 27 1 . . . . . . . Wheel 3 | . . . . . . . 1 8 12 Device 5 | . 8 . . . . . 3 12 10 Storage 10 | . 14 14 11 10 11 11 9 7 6 Processor 9 | . . . 11 11 11 11 12 13 15 Hackware 1 | . . . . . . . 8 1 . Protection 9 | . 5 14 11 10 11 11 9 8 7 Energy Gun 2 | . 2 . . . . . 4 6 . Ballistic Gun 2 | . 2 . . 8 11 11 . . 1 Ballistic Cannon 12 | . 18 26 21 13 11 5 7 5 7 Naked Turns 4 | . . . . . . . . . 4 Heaviest Build 81 | 12 56 56 61 61 61 64 64 81 74 Greatest Support 80 | 20 20 40 66 66 66 66 66 80 56 Greatest Overweight (x) 13 | . 2 2 1 . . . 13 4 2 Average Overweight (x) . | . . 1 . . . . 1 1 1 Largest Inventory Capacity 20 | 8 20 20 20 20 20 20 20 20 20 Average Capacity 19 | 7 13 20 20 19 20 20 20 20 19 Most Carried 20 | 5 20 20 20 20 20 20 20 20 20 Average Carried 18 | 3 12 19 19 19 20 19 19 19 18 Final Capacity 20 | 8 20 20 20 20 20 20 20 20 5 Final Carried 20 | 5 20 20 20 20 20 20 20 20 5 Class Distribution -------------------- 88% | Mutant 11% | Scavenger-Mutant Dominant Class ---------------- Mutant | -10/Materials Mutant | -10/Mines Mutant | -9/Materials Mutant | -9/Mines Mutant | -9/Exiles Mutant | -8/Mines Scavenger-Mutant | -8/Materials Mutant | -7/Factory Mutant | -7/Storage Resources | -11 -10 -10 -9 -9 -9 -8 -8 -7 -7 ----------- Run | Yrd Mat Min Mat Min Exi Min Mat Fac Sto Matter Collected 5099 | 122 454 362 718 219 . 146 830 1441 807 Remotely . | . . . . . . . . . . Salvage Created 6795 | 73 453 260 1152 304 . 253 1320 2034 946 Parts 332 | 9 11 13 68 12 . 15 64 93 47 Haulers Intercepted 16 | . 2 . 6 . . . 4 3 1 Recyclers Shooed 3 | . . . . 1 . . . 2 . Parts Field Recycled . | . . . . . . . . . . Retrieved Matter . | . . . . . . . . . . Parts Self-Destructed . | . . . . . . . . . . Prevented . | . . . . . . . . . . Kills | -11 -10 -10 -9 -9 -9 -8 -8 -7 -7 ------- Run | Yrd Mat Min Mat Min Exi Min Mat Fac Sto Combat Hostiles Destroyed 155 | . 12 10 26 5 . 9 30 34 29 Melee 1 | . 1 . . . . . . . . Guns 28 | . 6 . . . . 3 5 12 2 Cannons 96 | . 3 9 26 5 . . 14 20 19 AOE 26 | . . 1 . . . 6 10 1 8 Classes Destroyed 16 | 1 3 3 3 . . 2 2 2 . Worker 9 | . . 1 2 1 . . 2 3 . Builder 4 | . . . 1 . . . . 2 1 Tunneler 5 | 4 . . . . . 1 . . . Hauler 16 | . 2 . 6 . . . 4 3 1 Recycler 20 | . . 2 3 2 . . 5 8 . Mechanic 2 | . . . 1 . . . . . 1 Operator 1 | . . . . . . . . 1 . Watcher 5 | . . . . . . . 1 3 1 Swarmer 36 | . 4 3 8 . . 3 6 9 3 Grunt 64 | . 8 1 8 4 . 4 15 8 16 Brawler 3 | . . . . . . 1 . 1 1 Duelist 2 | . . . . . . 1 . . 1 Sentry 33 | . . . 10 1 . . 8 8 6 Hunter 5 | . . . . . . . 1 3 1 Programmer 6 | . . . . . . . . 5 1 Assembled 6 | . . 6 . . . . . . . Best Kill Streak 7 | 4 3 3 6 3 . 5 7 6 6 Combat Bots Only 7 | . 3 3 4 2 . 4 7 4 5 Max Kills in Single Turn 6 | 1 1 2 2 1 . 3 3 6 3 Gunslinging 1 | . . . . . . . . 1 . Exploded 3 | . . 1 . . . 3 3 1 2 Melee 1 | . 1 . . . . . . . . Uniques/NPCs Destroyed . | . . . . . . . . . . Combat | -11 -10 -10 -9 -9 -9 -8 -8 -7 -7 -------- Run | Yrd Mat Min Mat Min Exi Min Mat Fac Sto Hostile Shots Fired 1186 | . 69 8 84 15 . 13 213 498 286 Missed 391 | . 12 2 23 3 . 6 53 181 111 Damage Taken 10193 | . 575 65 672 176 . 103 2782 3664 2156 Core 1461 | . 86 20 67 26 . 32 529 385 316 Absorbed by Shields . | . . . . . . . . . . Regen/Repaired (Parts) 192 | . . . 152 . . . 40 . . Core Remaining (%) 57 | 100 . 57 . . . 68 3 . . Volleys Fired 466 | 5 39 24 72 17 . 10 84 135 80 Largest 2 | 2 2 2 2 2 . 2 2 2 2 Hottest 140 | 90 90 78 78 78 . 67 122 140 96 Shots Fired 840 | 10 70 49 134 28 . 19 154 259 117 Gun 249 | 10 44 . . 3 . 10 36 126 20 Cannon 559 | . 26 47 134 25 . 5 105 130 87 Launcher 32 | . . 2 . . . 4 13 3 10 Special . | . . . . . . . . . . Kinetic 605 | . 32 47 134 28 . 15 99 143 107 Thermal 203 | 10 38 . . . . . 42 113 . Explosive 30 | . . . . . . 4 13 3 10 Electromagnetic 2 | . . 2 . . . . . . . Robot Hit Streak 32 | 6 8 7 14 13 . 6 16 32 18 Robot Miss Streak 5 | 1 3 5 3 2 . 3 3 3 3 Penetration Max 1 | . . . . . . 1 1 . . Secondary Targets 2 | . . . . . . . . 2 . Max Gunslinging Chain 1 | . . . . . . . . 1 . Shots Hit Robots 601 | 6 48 21 93 22 . 10 117 193 91 Core Hits 312 | 4 17 14 37 8 . 18 65 79 70 Critical Kills . | . . . . . . . . . . Critical Parts Destroyed 1 | . 1 . . . . . . . . Critical Strikes 39 | 2 1 . 8 2 . . 6 16 4 Burn 14 | 2 . . . . . . 3 9 . Blast 23 | . . . 8 2 . . 2 7 4 Smash 1 | . 1 . . . . . . . . Sever 1 | . . . . . . . 1 . . Melee Attacks 49 | . 15 1 3 . . . 16 8 6 Impact 22 | . 15 1 3 . . . 2 1 . Slashing 27 | . . . . . . . 14 7 6 Piercing . | . . . . . . . . . . Sneak Attacks 11 | . 1 . 1 . . . 7 2 . Combat Hostiles . | . . . . . . . . . . Follow-up Attacks 3 | . 3 . . . . . . . . Damage Inflicted 18118 | 79 820 495 2187 495 . 779 4290 5202 3771 Guns 3703 | 73 334 . . 40 . 114 555 2306 281 Cannons 8789 | . 272 453 2118 435 . 42 1450 2195 1824 Explosions 4541 | . . 37 . . . 623 1700 545 1636 Melee 966 | . 214 . 38 . . . 554 130 30 Ramming 119 | 6 . 5 31 20 . . 31 26 . Kinetic 9413 | . 293 453 2118 475 . 156 1385 2428 2105 Thermal 3136 | 73 313 . . . . 57 620 2073 . Explosive 4447 | . . . . . . 566 1700 545 1636 Electromagnetic 37 | . . 37 . . . . . . . Impact 252 | . 214 . 38 . . . . . . Slashing 714 | . . . . . . . 554 130 30 Piercing . | . . . . . . . . . . Highest Corruption 8 | . 2 5 . . . . . 3 8 Average Corruption 2 | . 2 2 . . . . . 1 3 Corruption Purged . | . . . . . . . . . . Corruption Blocked . | . . . . . . . . . . Effects 78 | . 4 25 . . . . . 37 12 Message Errors 13 | . . 3 . . . . . 10 . Matter Fused 19 | . 1 7 . . . . . 5 6 Heat Flow Errors 15 | . . 9 . . . . . 4 2 Energy Discharges 11 | . . 1 . . . . . 7 3 Parts Rejected 1 | . 1 . . . . . . . . Parts Fused 2 | . . . . . . . . 1 1 Data Loss (minor) 5 | . 1 . . . . . . 4 . Data Loss (major) 3 | . . 1 . . . . . 2 . Misfires 5 | . . 3 . . . . . 2 . Alerts 4 | . 1 1 . . . . . 2 . Overload Shots . | . . . . . . . . . . Overflow Damage 528 | . 112 6 54 . . 22 162 106 66 Projectiles 91 | . . 6 31 . . . . 8 46 Explosions 262 | . . . . . . 22 122 98 20 Melee 175 | . 112 . 23 . . . 40 . . Knockbacks 65 | . 5 5 17 5 . . 10 17 6 Impact 3 | . 2 . 1 . . . . . . Kinetic 54 | . 3 3 12 5 . . 8 17 6 Secondary 8 | . . 2 4 . . . 2 . . Self-Inflicted Damage 337 | . . . . . . . 180 19 138 Shots 10 | . . . . . . . 5 1 4 Rammed 20 | . . 2 5 1 . . 8 4 . Targets Rammed 23 | 1 . 2 6 2 . . 8 4 . Kicked 1 | 1 . . . . . . . . . Crushed 2 | . . . 1 1 . . . . . Highest Temperature 481 | 60 218 248 108 96 . 75 481 186 199 Average Temperature 59 | 23 81 66 17 33 . 35 113 33 61 Received Heat Transfer 3621 | . 225 . 171 93 . 54 1242 1008 828 Effects 2 | . . . . . . . 2 . . Shutdowns 1 | . . . . . . . 1 . . Energy Bleed 1 | . . . . . . . 1 . . Siege Activations . | . . . . . . . . . . Robots Corrupted . | . . . . . . . . . . Combat Hostiles . | . . . . . . . . . . Parts Fried 5 | . 3 . 2 . . . . . . Impact Corruptions 10 | . 7 1 2 . . . . . . Robots Melted 2 | . . . . . . . 1 1 . Combat Hostiles 2 | . . . . . . . 1 1 . Parts Melted 17 | 3 2 . . . . . 3 9 . Heat Transferred 6668 | 346 746 . . . . 100 1406 4070 . Parts Sabotaged . | . . . . . . . . . . Parts Stolen . | . . . . . . . . . . Parts Stripped . | . . . . . . . . . . Power Chain Reactions 1 | . . 1 . . . . . . . Alert | -11 -10 -10 -9 -9 -9 -8 -8 -7 -7 ------- Run | Yrd Mat Min Mat Min Exi Min Mat Fac Sto Peak Influence 1056 | 20 230 132 474 293 . 243 444 643 1056 Initial 292 | . 13 31 . 172 . . . 120 292 Average 206 | 6 59 38 279 136 . 140 180 275 647 Maximum Alert Level 3 | . 1 . 2 1 . 1 2 2 3 Low Security (%) 57 | 100 96 100 25 64 . 57 62 44 . Level 1 28 | . 3 . 66 35 . 42 27 29 13 Level 2 12 | . . . 8 . . . 10 26 49 Level 3 1 | . . . . . . . . . 36 Level 4 . | . . . . . . . . . . Level 5 . | . . . . . . . . . . High Security . | . . . . . . . . . . Max Security . | . . . . . . . . . . Squads Dispatched 36 | . 3 . 4 1 . . 3 16 9 Investigation 5 | . 2 . . 1 . . . 2 . Extermination 6 | . . . . . . . . 5 1 Reinforcement 15 | . 1 . 3 . . . 3 3 5 Assault 1 | . . . 1 . . . . . . Garrison 9 | . . . . . . . . 6 3 Intercept . | . . . . . . . . . . Searches Triggered . | . . . . . . . . . . Construction Impeded 1 | . . . . . . . . . 1 Haulers Reinforced 3 | . . . . . . . . . 3 Active Scanning Responses . | . . . . . . . . . . Cargo Convoy Interrupts . | . . . . . . . . . . Stealth | -11 -10 -10 -9 -9 -9 -8 -8 -7 -7 --------- Run | Yrd Mat Min Mat Min Exi Min Mat Fac Sto Distress Signals 19 | . 1 . 8 . . . 5 3 2 Communications Jammed . | . . . . . . . . . . Distress Signals . | . . . . . . . . . . Times Spotted 259 | . 29 8 55 7 . 12 54 53 41 Peak Tracking Total 8 | . 5 3 7 3 . 6 8 5 7 Tactical Retreats 9 | . 1 . 3 1 . . 1 3 . Traps | -11 -10 -10 -9 -9 -9 -8 -8 -7 -7 ------- Run | Yrd Mat Min Mat Min Exi Min Mat Fac Sto Traps Triggered 9 | . 1 . . . . . 1 7 . Indirectly . | . . . . . . . . . . Trap Hack Attempts . | . . . . . . . . . . Triggered . | . . . . . . . . . . Disarmed . | . . . . . . . . . . Reprogrammed . | . . . . . . . . . . Reused . | . . . . . . . . . . Traps Extracted . | . . . . . . . . . . Installed . | . . . . . . . . . . Triggered . | . . . . . . . . . . Machines | -11 -10 -10 -9 -9 -9 -8 -8 -7 -7 ---------- Run | Yrd Mat Min Mat Min Exi Min Mat Fac Sto Machines Disabled 25 | . 2 1 1 1 . 2 4 6 8 Max in Single Turn 2 | . 1 1 . . . 2 2 1 1 Garrison Access 1 | . . . . . . . . 1 . Machines Repaired . | . . . . . . . . . . Machines Dismantled . | . . . . . . . . . . Machines Sabotaged . | . . . . . . . . . . Overloaded Fab Kills . | . . . . . . . . . . Hacking | -11 -10 -10 -9 -9 -9 -8 -8 -7 -7 --------- Run | Yrd Mat Min Mat Min Exi Min Mat Fac Sto Machines Accessed 60 | . 9 . 11 2 4 . 11 19 4 Terminals 33 | . 7 . 7 . . . 7 10 2 Fabricators . | . . . . . . . . . . Repair Stations 4 | . . . 1 . . . 1 2 . Recycling Units 10 | . 2 . 1 . . . 2 3 2 Scanalyzers 4 | . . . 2 . . . 1 1 . Garrison Access 3 | . . . . . . . . 3 . Total Hacks 149 | . 25 . 40 2 4 . 31 36 11 Successful 74 | . 12 . 25 2 4 . 15 13 3 Failed 74 | . 12 . 15 . . . 16 23 8 Catastrophic 15 | . . . 1 . . . 4 10 . Database Lockouts 1 | . 1 . . . . . . . . Manual 50 | . 20 . 7 . . . 14 8 1 Terminals 79 | . 20 . 16 . . . 19 19 5 Fabricators . | . . . . . . . . . . Repair Stations 15 | . . . 6 . . . 5 4 . Recycling Units 22 | . 5 . 3 . . . 3 5 6 Scanalyzers 23 | . . . 15 . . . 4 4 . Garrison Access 4 | . . . . . . . . 4 . Terminal Hacks 33 | . 8 . 4 2 4 . 7 6 2 Record 4 | . . . . . 4 . . . . Robot Analysis 3 | . 3 . . . . . . . . Prototype ID Bank 9 | . 3 . . . . . 3 2 1 Open Door 2 | . . . . 2 . . . . . Terminal Index 1 | . . . 1 . . . . . . Fabricator Index 1 | . . . . . . . . 1 . Alert Level 1 | . . . . . . . 1 . . Unreport Threat 3 | . . . . . . . 2 1 . Locate Traps 3 | . . . 2 . . . . 1 . Recall Reinforcements 1 | . 1 . . . . . . . . Hauler Manifests 4 | . 1 . 1 . . . . 1 1 Zone Layout 1 | . . . . . . . 1 . . Fabricator Hacks . | . . . . . . . . . . Repair Station Hacks 6 | . . . 4 . . . 2 . . Scan Component 3 | . . . 2 . . . 1 . . Repair 3 | . . . 2 . . . 1 . . Recycling Unit Hacks 6 | . 1 . 1 . . . 2 1 1 Retrieve Matter 1 | . . . . . . . 1 . . Retrieve Components 5 | . 1 . 1 . . . 1 1 1 Scanalyzer 22 | . . . 14 . . . 4 4 . Insert Component 11 | . . . 7 . . . 2 2 . Analyze 11 | . . . 7 . . . 2 2 . Garrison Access Hacks 1 | . . . . . . . . 1 . Seal Access 1 | . . . . . . . . 1 . Unauthorized Hacks 6 | . 3 . 2 . . . . 1 . Terminals 3 | . 1 . 1 . . . . 1 . Botnet 2 | . 1 . . . . . . 1 . Operators 1 | . . . 1 . . . . . . Fabricators . | . . . . . . . . . . Repair Stations . | . . . . . . . . . . Recycling Units 3 | . 2 . 1 . . . . . . Reject 1 | . . . 1 . . . . . . Tunnel 2 | . 2 . . . . . . . . Scanalyzers . | . . . . . . . . . . Garrison Access . | . . . . . . . . . . Data Cores Recovered . | . . . . . . . . . . Used . | . . . . . . . . . . Hacking Detections 46 | . 7 . 12 . . . 8 16 3 Full Trace Events . | . . . . . . . . . . Feedback Events . | . . . . . . . . . . Feedback Blocked . | . . . . . . . . . . Robot Schematics Acquired . | . . . . . . . . . . Robots Built . | . . . . . . . . . . Authchips . | . . . . . . . . . . Time . | . . . . . . . . . . Total Robot Build Rating . | . . . . . . . . . . Part Schematics Acquired 11 | . . . 7 . . . 2 2 . Parts Built . | . . . . . . . . . . Authchips . | . . . . . . . . . . Time . | . . . . . . . . . . Total Part Build Rating . | . . . . . . . . . . Parts Repaired 3 | . . . 2 . . . 1 . . Time 90 | . . . 64 . . . 26 . . Parts Recycled . | . . . . . . . . . . Recycled Matter . | . . . . . . . . . . Retrieved Matter 131 | . . . . . . . 131 . . Retrieved Components 29 | . 3 . 10 . . . . 9 7 Parts Scanalyzed 11 | . . . 7 . . . 2 2 . Part Schematics Acquired 11 | . . . 7 . . . 2 2 . Parts Damaged 2 | . . . 1 . . . . 1 . Bothacking | -11 -10 -10 -9 -9 -9 -8 -8 -7 -7 ------------ Run | Yrd Mat Min Mat Min Exi Min Mat Fac Sto Used RIF Installer . | . . . . . . . . . . Robots Hacked . | . . . . . . . . . . Non-combat . | . . . . . . . . . . Combat . | . . . . . . . . . . Robot Hacks Applied . | . . . . . . . . . . Relay Couplers Released . | . . . . . . . . . . Fabnet Peak Effective % . | . . . . . . . . . . Robots Rewired . | . . . . . . . . . . Allies Hacked . | . . . . . . . . . . Hacks Repelled . | . . . . . . . . . . Allies | -11 -10 -10 -9 -9 -9 -8 -8 -7 -7 -------- Run | Yrd Mat Min Mat Min Exi Min Mat Fac Sto Total Allies 6 | . . 2 . 4 . . . . . Largest Group 4 | . . 2 2 4 3 2 . . . Highest-Rated Group 71 | . . 50 50 71 63 32 . . . Highest-Rated Ally 31 | . . 31 31 31 31 16 . . . Total Orders . | . . . . . . . . . . Ally Attacks 53 | . . 5 14 15 . 19 . . . Total Damage 622 | . . 42 188 187 . 205 . . . Kills 9 | . . 1 4 1 . 3 . . . Allies Corrupted . | . . . . . . . . . . Allies Melted . | . . . . . . . . . . Intel | -11 -10 -10 -9 -9 -9 -8 -8 -7 -7 ------- Run | Yrd Mat Min Mat Min Exi Min Mat Fac Sto Robot Analysis Total 3 | . 3 . . . . . . . . Derelict Logs Recovered 3 | . . 1 . 2 . . . . . Drone Launches . | . . . . . . . . . . Drone Recoveries . | . . . . . . . . . . Exploration | -11 -10 -10 -9 -9 -9 -8 -8 -7 -7 ------------- Run | Yrd Mat Min Mat Min Exi Min Mat Fac Sto Turns Passed 15995 | 100 2163 1578 2441 1071 450 824 2306 4358 704 Spaces Moved 8283 | 58 1014 565 1175 670 311 543 1168 2426 353 Core 24 | 5 . . . . . . 1 . 18 Treads 4764 | . . 531 1175 670 311 543 918 616 . Legs 1101 | 53 1014 34 . . . . . . . Wheels 2394 | . . . . . . . 249 1810 335 Hover . | . . . . . . . . . . Flight . | . . . . . . . . . . Fastest Speed 50 | 50 120 240 145 145 145 145 125 115 50 Average Speed 161 | 113 173 241 171 145 145 145 155 152 114 Slowest Speed 700 | 120 260 260 240 145 145 145 700 400 130 Overloaded Moves . | . . . . . . . . . . Propulsion Burnouts . | . . . . . . . . . . Robots Hopped . | . . . . . . . . . . Cave-ins Triggered . | . . . . . . . . . . Exploration Rate (%) 76 | 5 98 97 99 98 72 99 84 58 57 Regions Visited 9 Branch Regions 5 Pre-discovered Areas 3 | . 2 1 . . . . . . . Known Exits Taken 3 | . . . . 1 . 1 . 1 . Unknown Exits Taken 6 | 1 1 1 1 . 1 . 1 . . Scrap Searched 3 | . . 1 . 1 . 1 . . . Spaces Dug 20 | . 2 5 2 . . . 3 6 2 Terrain Destroyed 362 | . 3 10 4 1 . 67 99 58 120 Melee 16 | . 2 1 2 . . . 3 6 2 Projectile 44 | . 1 5 2 1 . . 9 12 14 AOE 302 | . . 4 . . . 67 87 40 104 Terrain Rammed . | . . . . . . . . . . Walls Destroyed . | . . . . . . . . . . Machines Disabled . | . . . . . . . . . . Actions | -11 -10 -10 -9 -9 -9 -8 -8 -7 -7 --------- Run | Yrd Mat Min Mat Min Exi Min Mat Fac Sto Total 10023 | 78 1327 728 1466 745 310 558 1464 2818 529 Wait 717 | 3 199 128 141 17 . . 78 92 59 Move 8275 | 58 1013 564 1174 669 310 542 1167 2425 353 Hop . | . . . . . . . . . . Pick Up 116 | 5 22 1 19 19 . 1 26 20 3 Fast Attach 72 | 7 7 . 3 6 . . 19 25 5 Attach 19 | . 1 . 2 1 . . 9 3 3 Detach 14 | . 3 . . 2 . . 4 2 3 Swap 126 | . 16 7 17 1 . 4 24 46 11 Drop 150 | . 17 1 29 11 . 1 29 56 6 Fire 466 | 5 39 24 72 17 . 10 84 135 80 Melee 44 | . 10 1 3 . . . 16 8 6 Ram 2 | . . . . . . . . 2 . Kick . | . . . . . . . . . . Crush 20 | . . 2 6 2 . . 8 2 . Escape Stasis 2 | . . . . . . . . 2 . Rewire . | . . . . . . . . . . Trap . | . . . . . . . . . . Miscellaneous . | . . . . . . . . . . Route ------- -11/Scrapyard -10/Materials (discovered 5 exits: *Mat x3 / [*Min x2]) -10/Mines (discovered 2 exits: *Mat x2) -9/Materials (discovered 5 exits: *Mat x3 / *Min x2) -9/Mines (discovered 3 exits: *Mat x2 / *Exi) -9/Exiles (discovered 2 exits: [*Min x2]) -8/Mines (discovered 2 exits: *Mat x2) -8/Materials (discovered 2 exits: *Fac x2) -7/Factory (discovered 3 exits: *Fac / *Sto / [*Low]) -7/Storage History --------- Turn | Location | Event 3 | -11/Scrapyard | Discovered new exit (range 14) 101 | -11/Scrapyard | Entered Materials 392 | -10/Materials | Build established: Mutant 601 | -10/Materials | Central database locked down 638 | -10/Materials | Discovered new exit (range 16) 701 | -10/Materials | Derelicts attacked the area 1004 | -10/Materials | Discovered new exit (range 13) 1153 | -10/Materials | Discovered new exit (range 15) 1320 | -10/Materials | Discovered new exit (range 16) 1578 | -10/Materials | Discovered new exit (range 4) 2264 | -10/Materials | Entered Mines 2343 | -10/Mines | Assembled infested the area 2348 | -10/Mines | Assisted by a Guerilla fighting off Assembled 2677 | -10/Mines | Discovered new exit (range 14) 2817 | -10/Mines | Learned location of Storage (-7) 3155 | -10/Mines | Discovered new exit (range 16) 3842 | -10/Mines | Entered Materials 3842 | -9/Materials | Accompanied by 2 allies 3842 | -9/Materials | Evolved 2 slots: Propulsion x1, Utility x1 3847 | -9/Materials | Led the pair of lost Derelicts to an unsafe place 4373 | -9/Materials | Discovered new exit (range 16) 4786 | -9/Materials | Repaired Imp. Light Cannon 4819 | -9/Materials | Repaired Imp. Light Cannon 5421 | -9/Materials | Discovered new exit (range 16) 5799 | -9/Materials | Discovered new exit (range 4) 5877 | -9/Materials | Discovered new exit (range 14) 6190 | -9/Materials | Discovered new exit (range 4) 6242 | -9/Materials | First assault squad dispatched 6283 | -9/Materials | Entered Mines 6286 | -9/Mines | Identified exit to Materials 6294 | -9/Mines | Discovered exit to Materials (range 5) 6559 | -9/Mines | Met a Derelict shopkeep closing up shop 6662 | -9/Mines | Found the Drone Emporium 6668 | -9/Mines | Found Prototype Device 6740 | -9/Mines | Identified Decoy Drone Bay 6914 | -9/Mines | Identified exit to Exiles 7118 | -9/Mines | Assisted by bots powering up and referring to "LRC-V3" 7215 | -9/Mines | Received a Mining Laser from a helpful Derelict 7340 | -9/Mines | Deemed a non-threat by the Exiles lab entrance 7354 | -9/Mines | Entered Exiles 7354 | -9/Exiles | Found Exiles lab abandoned 7354 | -9/Exiles | Accompanied by 3 allies 7373 | -9/Exiles | Discovered new exit (range 15) 7791 | -9/Exiles | Discovered new exit (range 10) 7804 | -9/Exiles | Entered Mines 7804 | -8/Mines | Accompanied by 2 allies 8017 | -8/Mines | Discovered exit to Materials (range 10) 8077 | -8/Mines | Discovered exit to Materials (range 9) 8628 | -8/Mines | Entered Materials 8628 | -8/Materials | Evolved 2 slots: Utility x2 9032 | -8/Materials | Destroyed 7 combat bots 9033 | -8/Materials | Lost 3 parts (1n1u1w) 9234 | -8/Materials | Lost 6 parts (1p3n1u1w) 9292 | -8/Materials | Core integrity fell below 50% 9367 | -8/Materials | Core integrity fell below 20% 9402 | -8/Materials | Lost 6 parts (2n1u3w) 9687 | -8/Materials | Build established: Scavenger-Mutant 10069 | -8/Materials | Discovered new exit (range 16) 10464 | -8/Materials | Discovered new exit (range 16) 10702 | -8/Materials | Repaired Lgt. Treads 10934 | -8/Materials | Entered Factory 10934 | -7/Factory | Evolved 2 slots: Propulsion x1, Utility x1 11749 | -7/Factory | Discovered new exit (range 4) 11770 | -7/Factory | Build established: Mutant 13877 | -7/Factory | Garrison activated, responded to threat 14230 | -7/Factory | Discovered new exit (range 13) 14382 | -7/Factory | Identified exit to Factory 14722 | -7/Factory | Garrison activated, responded to threat 14755 | -7/Factory | Core integrity fell below 50% 15221 | -7/Factory | Discovered new exit (range 15) 15256 | -7/Factory | Identified exit to Storage 15292 | -7/Factory | Entered Storage 15596 | -7/Storage | Found Prototype Launcher 15596 | -7/Storage | Identified Rocket Array 15730 | -7/Storage | Garrison activated, responded to threat 15942 | -7/Storage | Core integrity fell below 20% 15996 | -7/Storage | Destroyed by G-47 Trooper with Particle Gun Last Messages --------------- 15952_ The unstable cave ceiling collapses. 15952_ Acquired Aluminum Leg. 15953_ System corrupted: Energy discharge (-28). 15953_ Acquired 22 matter. 15954_ Acquired 1 matter. 15976_ The unstable cave ceiling collapses. 15980_ ALERT: Construction progress impeded, dispatching reinforcements to local area. 15982_ Arm. Huge Wheel destroyed. 15983_ Dropped Imp. Grenade Launcher. 15984_ Dropped Hcp. Storage Unit. 15984_ Dropped Decoy Drone Bay. 15985_ Acquired Imp. Flight Unit. 15988_ Imp. Light Armor Plating destroyed. 15992_ Imp. Signal Interpreter destroyed. 15992_ Adv. Targeting Computer destroyed. 15992_ System corrupted by crushing effect (+1). 15992_ System corrupted by crushing effect (+2). 15993_ System corrupted: Heat flow error (+130). 15995_ Acquired 27 matter. Map ----- +----------------------------------------------------+ | ???????????????????????????????????????????? | | ???????????????????????????????????????????? | | ???????????????????????????????????????????? | | ???????????????????????????????????????????? | | ???????????????????????????????????????????? | | ???????????????????????????????????????????? | | ???????????????????????????????????????????? | | ???????????????????????????????????????????? | | ???????????????????????????????????????????? | | ???????????????????????????????????????????? | | ?????????????????????????????##????????????? | | ???????????????????????######;####?????????? | | ??????????????????????? !* ??????????? | | ??????????????????????? =%* ??????????? | | ??????????????????????? = ???????????? | | ?????????????????????## ###g#####?????????? | | ?????????????????????? # % #?????????? | | ?????????????????????? # " #?????????? | | ??????????????????????? # % " #?????????? | | ??????????????????????? # a #?????????? | | ???????????????????????## #?????????? | | ????????????????????? ## "" #?????????? | | ?????????????????????? # "" #########?? | | ?????????????????????? # %" ## #?? | | ?????????????????????? # ## #?? | | ???????????????????######@##+###### #?? | | ?????????????####### # # # ???# #?? | | ?????????????# # ###??# #?? | | ?????????????# """ # u #??# #?? | | ?????#####???# ""]! ## ######+###??? | | ?????# #???# """[] / lb #????? | | ###### #???#*"/!"" ## g !!! #????? | | # #???# "=!"" # g=! ]]#????? | | # #???# " " #; [!]!=#????? | | """ # #???# [ ## r *] !!#????? | | [[] + #### ####/###+##a ######????? | | ]*" # ########?????????? | | """ # % #+######???????????? | | #"" % % % # ????????????? | | #"Y """ """ # """ "????????????? | | ######"" "" """ # """ ""???????????? | | ????## """ "" #%""" """??????????? | | ##??## % % # ??????????? | | "#???# % + ??????????? | | "###?# %%######+#### %%# "T"??????????? | | ![ #?# #??# ### %## ""???????????? | | "" ###% #### T #?# #?###?###???????????? | | "" ### **[*# !! ## #???????????????????? | | "" ### %=% # !!### #???????????????????? | | "" + =%[^#######?# #???????????????????? | +----------------------------------------------------+ Best States ------------- Heat Dissipation 75 Energy Generation 18 Energy Capacity 310 Matter Stores 300 Matter Capacity 300 Sight Range 16 Robot Scan Range 15 Terrain Scan Density 10 Armor Coverage 450 Evasion (%) 55 Targeting Accuracy 14 Recoil Reduction 4 Defensive Hacking 10 Authchip Count 1 Item Schematics ----------------- Hcp. Storage Unit | -9/Materials | Scanalyzed Imp. Flight Unit | -9/Materials | Scanalyzed Imp. Assault Rifle | -9/Materials | Scanalyzed Lgt. Armor Plating | -9/Materials | Scanalyzed Datajack | -9/Materials | Scanalyzed Utility Shielding | -9/Materials | Scanalyzed Imp. Light Cannon | -9/Materials | Scanalyzed Adv. Terrain Scan Processor | -8/Materials | Scanalyzed Imp. Light Armor Plating | -8/Materials | Scanalyzed Enh. Autogun | -7/Factory | Scanalyzed Mic. Nuclear Core | -7/Factory | Scanalyzed Robot Schematics ------------------ None Fabricated ------------ Nothing Alien Tech Used ----------------- None Achievements -------------- None Challenges ------------ None Game ------ Seed ReinforcedAdvancedProtection Manual? 0 Play Time 02:24:17 Cumulative 465.4 hours Start 2024.06.15 @ 21:26:24 End 2024.06.16 @ 00:01:24 Sessions 1 Manual Loads 0 Difficulty Rogue Special Mode None Game No. 141 Rogue 102 Adventurer 0 Explorer 39 Win Type - Total 13 Types 11/1/1/0/0/0/0/0/0 Lore% 76 Gallery% 83 Achievement% 71 Wizard Run 0 Options --------- Layout 0 ASCII 1 Keyboard 1 Movement Arrows Keybinds 0 Fullscreen 2 Font 36/Smallcaps Map View 76x50 Zoom Use 0% Tactical HUD 1 Map Filters NONE Filters NONE Steam 1 RUN: 1acdb792-7da2-4ae0-8575-6015b8b5203e